Cogmind - Beta 10.2 @@@ ROGUE MODE // 2021.12.16 @ 06:54:25 Player: Azken Zutik Result: Destroyed by G-47 Trooper with Particle Gun Performance ------------- Evolutions (2) 1000 Regions Visited (6) 1200 Robots Destroyed (5) 25 Value Destroyed (159) 159 Prototype IDs (24) 480 Alien Tech Used (0) 0 Bonus (850) 850 TOTAL SCORE: 3714 Bonus ------- Pacifist 270 Follower Combat Kills 280 Aligned with FarCom 300 Cogmind --------- Core Integrity 0/550 Matter 267/300 Energy 59/100 System Corruption 0% Temperature Cool (9) Movement Core (50) Location -8/Storage Parts ------- > --- POWER (1) -------- (None) > --- PROPULSION (2) --- (None) > --- UTILITY (4) ------ (None) > --- WEAPON (4) ------- (None) > --- INVENTORY (4) ---- Heavy Armor Plating Heavy Armor Plating Peak State ------------ > --- POWER ------------ (None) > --- PROPULSION ------- Potential Leg Potential Leg > --- UTILITY ---------- High-capacity Storage Unit High-capacity Battery Heavy Armor Plating > --- WEAPON ----------- Electrolaser Electrolaser > --- INVENTORY -------- Heavy Armor Plating Heavy Armor Plating [Rating: 35] Favorites ----------- Power None Propulsion Potential Leg Leg Potential Leg Flight Unit Improved VTOL Module Utility High-capacity Storage Unit Storage High-capacity Storage Unit Protection Heavy Armor Plating Weapon Electrolaser Energy Gun Electrolaser Build | -11 -10 -10 -10 -9 -8 -8 ------- Run | Scr Mat Min Exi Min Mat Sto Slots Evolved 4 | . . . . . 4 . Power . | . . . . . . . Propulsion . | . . . . . . . Utility 2 | . . . . . 2 . Weapon 2 | . . . . . 2 . Parts Attached 11 | . . . . 2 7 2 Power . | . . . . . . . Engine . | . . . . . . . Core . | . . . . . . . Reactor . | . . . . . . . Propulsion 6 | . . . . 2 2 2 Treads . | . . . . . . . Leg 4 | . . . . 2 2 . Wheel . | . . . . . . . Hover . | . . . . . . . Flight 2 | . . . . . . 2 Utility 3 | . . . . . 3 . Device . | . . . . . . . Storage 2 | . . . . . 2 . Processor . | . . . . . . . Hackware . | . . . . . . . Protection 1 | . . . . . 1 . Artifact . | . . . . . . . Weapon 2 | . . . . . 2 . Energy Gun 2 | . . . . . 2 . Energy Cannon . | . . . . . . . Ballistic Gun . | . . . . . . . Ballistic Cannon . | . . . . . . . Launcher . | . . . . . . . Special Weapon . | . . . . . . . Impact Weapon . | . . . . . . . Slashing Weapon . | . . . . . . . Piercing Weapon . | . . . . . . . Special Melee Weapon . | . . . . . . . Unidentified Prototypes 1 | . . . . . . 1 Parts Lost 2 | . . . . . 2 . Power . | . . . . . . . Propulsion . | . . . . . . . Utility . | . . . . . . . Weapon 2 | . . . . . 2 . Highest Loss Streak 2 | . . . . . 2 . Average Slot Usage (%) 10 | . . . . 5 45 7 Leg 3 | . . . . 5 14 . Flight 1 | . . . . . . 7 Storage 2 | . . . . . 14 . Protection 1 | . . . . . 6 . Energy Gun 1 | . . . . . 10 . Naked Turns 591 | . 31 154 212 84 37 73 Heaviest Build 57 | . . . . . 57 . Greatest Support 60 | 3 3 3 3 60 60 12 Greatest Overweight (x) . | . . . . . . . Average Overweight (x) . | . . . . . . . Largest Inventory Capacity 12 | 4 4 4 4 4 12 4 Average Capacity 5 | 4 4 4 4 4 9 4 Most Carried 5 | . . . 4 4 5 4 Average Carried 2 | . . . 2 3 4 4 Final Capacity 4 | 4 4 4 4 4 4 4 Final Carried 4 | . . . 4 4 4 4 Class Distribution -------------------- 88% | Mutant 9% | Sprinter Dominant Class ---------------- Mutant | -10/Materials Mutant | -10/Mines Mutant | -10/Exiles Mutant | -9/Mines Mutant | -8/Materials Sprinter | -8/Storage Resources | -11 -10 -10 -10 -9 -8 -8 ----------- Run | Scr Mat Min Exi Min Mat Sto Matter Collected 387 | 200 . . . . 94 93 Remotely . | . . . . . . . Salvage Created 166 | . . . . . 166 . Parts 7 | . . . . . 7 . Haulers Intercepted . | . . . . . . . Recyclers Shooed . | . . . . . . . Parts Field Recycled . | . . . . . . . Retrieved Matter . | . . . . . . . Parts Self-Destructed . | . . . . . . . Prevented . | . . . . . . . Kills | -11 -10 -10 -10 -9 -8 -8 ------- Run | Scr Mat Min Exi Min Mat Sto Combat Hostiles Destroyed 5 | . . . . . 5 . Guns 4 | . . . . . 4 . Classes Destroyed 3 | . . . . . 3 . Swarmer 2 | . . . . . 2 . Grunt 2 | . . . . . 2 . Sentry 1 | . . . . . 1 . Best Kill Streak 5 | . . . . . 5 . Combat Bots Only 5 | . . . . . 5 . Max Kills in Single Turn 1 | . . . . . 1 . Gunslinging . | . . . . . . . Exploded . | . . . . . . . Melee . | . . . . . . . Uniques/NPCs Destroyed . | . . . . . . . Combat | -11 -10 -10 -10 -9 -8 -8 -------- Run | Scr Mat Min Exi Min Mat Sto Damage Taken 1197 | . 21 . . 215 643 318 Core 667 | . 21 . . 92 268 286 Absorbed by Shields . | . . . . . . . Core Remaining (%) 77 | 100 . . . 54 . . Volleys Fired 19 | . . . . . 19 . Largest 2 | . . . . . 2 . Hottest 126 | . . . . . 126 . Shots Fired 30 | . . . . . 30 . Gun 30 | . . . . . 30 . Cannon . | . . . . . . . Launcher . | . . . . . . . Special . | . . . . . . . Kinetic . | . . . . . . . Thermal 30 | . . . . . 30 . Explosive . | . . . . . . . Electromagnetic . | . . . . . . . Robot Hit Streak 12 | . . . . . 12 . Robot Miss Streak 3 | . . . . . 3 . Penetration Max . | . . . . . . . Secondary Targets . | . . . . . . . Shots Hit Robots 21 | . . . . . 21 . Core Hits 17 | . . . . 10 7 . Critical Hits . | . . . . . . . Critical Kills . | . . . . . . . Critical Parts Destroyed . | . . . . . . . Melee Attacks . | . . . . . . . Impact . | . . . . . . . Slashing . | . . . . . . . Piercing . | . . . . . . . Sneak Attacks . | . . . . . . . Combat Hostiles . | . . . . . . . Follow-up Attacks . | . . . . . . . Damage Inflicted 400 | . . . . 38 362 . Guns 358 | . . . . . 358 . Cannons . | . . . . . . . Explosions . | . . . . . . . Melee . | . . . . . . . Ramming 42 | . . . . 38 4 . Kinetic . | . . . . . . . Thermal 358 | . . . . . 358 . Explosive . | . . . . . . . Electromagnetic . | . . . . . . . Impact . | . . . . . . . Slashing . | . . . . . . . Piercing . | . . . . . . . Highest Corruption . | . . . . . . . Average Corruption . | . . . . . . . Corruption Purged . | . . . . . . . Overload Shots . | . . . . . . . Overflow Damage . | . . . . . . . Projectiles . | . . . . . . . Explosions . | . . . . . . . Melee . | . . . . . . . Knockbacks . | . . . . . . . Impact . | . . . . . . . Kinetic . | . . . . . . . Secondary . | . . . . . . . Self-Inflicted Damage 13 | . . . . 11 2 . Shots . | . . . . . . . Rammed 14 | . . . . 12 2 . Targets Rammed 18 | . . . . 16 2 . Kicked 4 | . . . . 4 . . Crushed . | . . . . . . . Highest Temperature 765 | . . . . . 765 6 Average Temperature 435 | . . . . . 441 6 Received Heat Transfer 391 | . 12 . . 100 135 144 Effects 26 | . . . . . 26 . Energy Bleed 8 | . . . . . 8 . Matter Decay 4 | . . . . . 4 . Short Circuit 2 | . . . . . 2 . Damage (minor) 2 | . . . . . 2 . Damage (major) 9 | . . . . . 9 . Damage (core) 1 | . . . . . 1 . Siege Activations . | . . . . . . . Robots Corrupted . | . . . . . . . Combat Hostiles . | . . . . . . . Parts Fried . | . . . . . . . Impact Corruptions . | . . . . . . . Robots Melted 1 | . . . . . 1 . Combat Hostiles 1 | . . . . . 1 . Parts Melted 2 | . . . . . 2 . Heat Transferred 777 | . . . . . 777 . Parts Sabotaged . | . . . . . . . Parts Stolen . | . . . . . . . Parts Stripped . | . . . . . . . Power Chain Reactions . | . . . . . . . Missiles Intercepted . | . . . . . . . Alert | -11 -10 -10 -10 -9 -8 -8 ------- Run | Scr Mat Min Exi Min Mat Sto Peak Influence 347 | . 30 11 . . 160 347 Initial 73 | . . 11 . . . 73 Average 59 | . 5 11 . . 53 190 Maximum Alert Level 1 | . . . . . . 1 Low Security (%) 91 | 100 100 100 . 100 100 64 Level 1 8 | . . . . . . 35 Level 2 . | . . . . . . . Level 3 . | . . . . . . . Level 4 . | . . . . . . . Level 5 . | . . . . . . . High Security . | . . . . . . . Max Security . | . . . . . . . Squads Dispatched 5 | . 1 . . . . 4 Investigation . | . . . . . . . Extermination . | . . . . . . . Reinforcement 2 | . 1 . . . . 1 Assault 2 | . . . . . . 2 Garrison 1 | . . . . . . 1 Intercept . | . . . . . . . Construction Impeded . | . . . . . . . Haulers Reinforced . | . . . . . . . Stealth | -11 -10 -10 -10 -9 -8 -8 --------- Run | Scr Mat Min Exi Min Mat Sto Distress Signals 3 | . . . . 1 1 1 Communications Jammed . | . . . . . . . Distress Signals . | . . . . . . . Times Spotted 52 | . 3 . . 9 12 28 Peak Tracking Total 19 | . 2 . . 8 7 19 Tactical Retreats 3 | . . . . 1 1 1 Traps | -11 -10 -10 -10 -9 -8 -8 ------- Run | Scr Mat Min Exi Min Mat Sto Traps Triggered 1 | . . . . . . 1 Indirectly . | . . . . . . . Trap Hack Attempts . | . . . . . . . Triggered . | . . . . . . . Disarmed . | . . . . . . . Reprogrammed . | . . . . . . . Reused . | . . . . . . . Traps Extracted . | . . . . . . . Installed . | . . . . . . . Triggered . | . . . . . . . Machines | -11 -10 -10 -10 -9 -8 -8 ---------- Run | Scr Mat Min Exi Min Mat Sto Machines Disabled . | . . . . . . . Max in Single Turn . | . . . . . . . Machines Sabotaged . | . . . . . . . Garrisons Compromised . | . . . . . . . Overloaded Fab Kills . | . . . . . . . Fab Network Shutdowns . | . . . . . . . Hacking | -11 -10 -10 -10 -9 -8 -8 --------- Run | Scr Mat Min Exi Min Mat Sto Machines Accessed 6 | . 1 . 1 . . 4 Terminals 5 | . 1 . . . . 4 Fabricators . | . . . . . . . Repair Stations . | . . . . . . . Recycling Units . | . . . . . . . Scanalyzers . | . . . . . . . Garrison Access . | . . . . . . . Total Hacks 10 | . 3 . 1 . . 6 Successful 3 | . . . 1 . . 2 Failed 7 | . 3 . . . . 4 Catastrophic 3 | . 1 . . . . 2 Database Lockouts . | . . . . . . . Manual 6 | . 2 . 1 . . 3 Terminals 9 | . 3 . . . . 6 Fabricators . | . . . . . . . Repair Stations . | . . . . . . . Recycling Units . | . . . . . . . Scanalyzers . | . . . . . . . Garrison Access . | . . . . . . . Terminal Hacks 3 | . . . 1 . . 2 Open Door 1 | . . . . . . 1 Branch Access Points 1 | . . . . . . 1 EX-Prototype ID Bank 1 | . . . 1 . . . Fabricator Hacks . | . . . . . . . Repair Station Hacks . | . . . . . . . Recycling Unit Hacks . | . . . . . . . Scanalyzer . | . . . . . . . Garrison Access Hacks . | . . . . . . . Unauthorized Hacks . | . . . . . . . Terminals . | . . . . . . . Fabricators . | . . . . . . . Repair Stations . | . . . . . . . Recycling Units . | . . . . . . . Scanalyzers . | . . . . . . . Garrison Access . | . . . . . . . Data Cores Recovered . | . . . . . . . Used . | . . . . . . . Hacking Detections 4 | . 1 . . . . 3 Full Trace Events 1 | . . . . . . 1 Feedback Events . | . . . . . . . Feedback Blocked . | . . . . . . . Robot Schematics Acquired . | . . . . . . . Robots Built . | . . . . . . . Matter . | . . . . . . . Time . | . . . . . . . Total Robot Build Rating . | . . . . . . . Part Schematics Acquired . | . . . . . . . Parts Built . | . . . . . . . Matter . | . . . . . . . Time . | . . . . . . . Total Part Build Rating . | . . . . . . . Parts Repaired . | . . . . . . . Time . | . . . . . . . Parts Recycled . | . . . . . . . Recycled Matter . | . . . . . . . Retrieved Matter . | . . . . . . . Retrieved Components . | . . . . . . . Parts Scanalyzed . | . . . . . . . Part Schematics Acquired . | . . . . . . . Parts Damaged . | . . . . . . . Bothacking | -11 -10 -10 -10 -9 -8 -8 ------------ Run | Scr Mat Min Exi Min Mat Sto Used RIF Installer . | . . . . . . . Robots Hacked . | . . . . . . . Non-combat . | . . . . . . . Combat . | . . . . . . . Robot Hacks Applied . | . . . . . . . Relay Couplers Released . | . . . . . . . Robots Rewired . | . . . . . . . Allies Hacked . | . . . . . . . Hacks Repelled . | . . . . . . . Allies | -11 -10 -10 -10 -9 -8 -8 -------- Run | Scr Mat Min Exi Min Mat Sto Total Allies 12 | . . . . . . 12 Largest Group 12 | . . . . . . 12 Highest-Rated Group 233 | . . . . . . 233 Highest-Rated Ally 31 | . . . . . . 31 Total Orders 1 | . . . . . . 1 GUARD 1 | . . . . . . 1 Ally Attacks 52 | . . . . . . 52 Total Damage 765 | . . . . . . 765 Kills 8 | . . . . . . 8 Allies Corrupted . | . . . . . . . Allies Melted . | . . . . . . . Intel | -11 -10 -10 -10 -9 -8 -8 ------- Run | Scr Mat Min Exi Min Mat Sto Robot Analysis Total . | . . . . . . . Derelict Logs Recovered 1 | . . . . 1 . . Drone Launches . | . . . . . . . Drone Recoveries . | . . . . . . . Exploration | -11 -10 -10 -10 -9 -8 -8 ------------- Run | Scr Mat Min Exi Min Mat Sto Turns Passed 809 | 33 31 154 212 100 144 135 Spaces Moved 1297 | 38 62 277 410 159 98 253 Core 1141 | 38 62 277 410 158 71 125 Treads . | . . . . . . . Legs 28 | . . . . 1 27 . Wheels . | . . . . . . . Hover . | . . . . . . . Flight 128 | . . . . . . 128 Fastest Speed 32 | 50 50 50 50 50 50 32 Average Speed 49 | 50 50 50 50 50 61 40 Slowest Speed 90 | 50 50 50 50 90 90 50 Overloaded Moves . | . . . . . . . Propulsion Burnouts . | . . . . . . . Robots Hopped 2 | . . . . . . 2 Cave-ins Triggered . | . . . . . . . Exploration Rate (%) 35 | 4 22 50 61 42 14 53 Regions Visited 6 Branch Regions 4 Pre-discovered Areas . | . . . . . . . Known Exits Taken 1 | . . . . 1 . . Unknown Exits Taken 5 | 1 1 1 1 . 1 . Scrap Searched . | . . . . . . . Spaces Dug . | . . . . . . . Terrain Destroyed . | . . . . . . . Melee . | . . . . . . . Projectile . | . . . . . . . AOE . | . . . . . . . Terrain Rammed . | . . . . . . . Walls Destroyed . | . . . . . . . Machines Disabled . | . . . . . . . Actions | -11 -10 -10 -10 -9 -8 -8 --------- Run | Scr Mat Min Exi Min Mat Sto Total 1431 | 51 61 291 417 179 151 281 Wait 77 | 14 . 15 . 1 21 26 Move 1287 | 37 61 276 409 158 97 249 Hop 2 | . . . . . . 2 Pick Up 9 | . . . 6 . 3 . Fast Attach 5 | . . . . . 3 2 Attach 6 | . . . . 2 4 . Detach 2 | . . . . 2 . . Swap . | . . . . . . . Drop 4 | . . . 2 . 2 . Fire 19 | . . . . . 19 . Melee . | . . . . . . . Ram 6 | . . . . 4 2 . Kick 12 | . . . . 12 . . Crush . | . . . . . . . Escape Stasis . | . . . . . . . Rewire 2 | . . . . . . 2 Trap . | . . . . . . . Miscellaneous . | . . . . . . . Route ------- -11/Scrapyard -10/Materials -10/Mines (discovered 2 exits: [*Mat] / *Exi) -10/Exiles -9/Mines -8/Materials -8/Storage (discovered 2 exits: [*Fac] / Rec) History --------- Turn | Location | Event 4 | -11/Scrapyard | Discovered new exit (range 13) 34 | -11/Scrapyard | Entered Materials 61 | -10/Materials | Discovered new exit (range 10) 65 | -10/Materials | Entered Mines 105 | -10/Mines | Discovered new exit (range 12) 151 | -10/Mines | Deemed a non-threat by the Exiles lab entrance 151 | -10/Mines | Discovered new exit (range 5) 219 | -10/Mines | Entered Exiles 231 | -10/Exiles | Met 8R-AWN 241 | -10/Exiles | Met EX-HEX 257 | -10/Exiles | Met EX-BIN 263 | -10/Exiles | Aligned with FarCom system 263 | -10/Exiles | Given EX-Vault access code 275 | -10/Exiles | Opened EX-Vault 278 | -10/Exiles | Found Potential Leg 280 | -10/Exiles | Found Potential Leg 282 | -10/Exiles | Found Field Lobotomy Kit 285 | -10/Exiles | Found Chronowheel 297 | -10/Exiles | Warned to stay clear of 0b10 Research branches 301 | -10/Exiles | Build established: Mutant 378 | -10/Exiles | Met EX-DEC 405 | -10/Exiles | Discovered new exit (range 14) 431 | -10/Exiles | Left Exiles lab with Potential Leg 431 | -10/Exiles | Entered Mines 457 | -9/Mines | Assembled infested the area 517 | -9/Mines | Identified exit to Materials 531 | -9/Mines | Entered Materials 531 | -8/Materials | Evolved 4 slots: Utility x2, Weapon x2 643 | -8/Materials | Released all parts (3) 670 | -8/Materials | Discovered new exit (range 10) 675 | -8/Materials | Entered Storage 700 | -8/Storage | Core integrity fell below 50% 705 | -8/Storage | Assisted by bots powering up and referring to "LRC-V3" 713 | -8/Storage | Garrison activated, responded to threat 730 | -8/Storage | Met a pair of Derelict thieves 760 | -8/Storage | Identified exit to Recycling 785 | -8/Storage | Core integrity fell below 20% 792 | -8/Storage | Discovered new exit (range 7) 810 | -8/Storage | Destroyed by G-47 Trooper with Particle Gun Last Messages --------------- 00741_ 07-3SM(g): "So much for stealth, let's take what we have and get out of here before it's too late." 00756_ Trooper 3e destroyed. 00760_ Connecting with Terminal... >>Access(Branch) Found 1 branch access point: (13,9) Recycling Map updated. 00781_ C-30 ARC bursts open, deploying its payload. 00781_ G-50 Soldier unfolds itself. 00781_ L-31 Rogue unfolds itself. 00781_ G-47 Trooper unfolds itself. 00781_ I-25 Savior unfolds itself. 00791_ K-01 Serf cleans the Compression Vault. 00792_ EXIT=FOUND 00793_ Triggered Blade Trap. 00793_ Massive razor-sharp blades shoot up from within the floor. 00793_ Imp. VTOL Module severed. 00794_ U-05 Engineer destroyed. 00794_ K-01 Serf collects debris. Map ----- +----------------------------------------------------+ | ????????????????????????????????????????? | | ????????????????????????????????????????? | | ????????????????????????????????????????? | | ????????????????????????????????????????? | | ????????????????????????????????????????? | | ????????????????????????????????????????? | | ????????????????????????????????????????? | | ????????????????????????????????????????? | | ????????????????????????????????????????? | | ????????????????????????????????????????? | | ????????????????+???????????????????????? | | ???????????????? ???????????????????????? | | ???????????????? ###????????????????????? | | ???????????????? #????????????????##### | | ???????????????? #????????????????# | | ???????????????? #????????????##### | | ???????????????? #????????????# # | | ???????????????# +????????????# # | | ?????Y?????????# #Y???????????# # | | ???????????????# a #????????????# # | | ???????????????#gg #??########### ^# | | ?#####?????????# #??# ! # #?? | | ?#!% ?????????# #??# # ##### | | ?Y! ?????????# #### """" # | | ??! ""???????+ ##"" """" / " | | ??? """ ?????#@ ##"T """" # "%" | | ??? ?????# ##"" """" # ##### | | ???? """??????# #### # #??? | | ???? Y"??????# #??# #??? | | ????? ""???????# ############# #??? | | ????? ????#### ## #??? | | ???###w###??#T"# ## """"" # #??? | | ???# #### "# ## """"" # #??? | | ???# # """"" ## #??? | | ???# T g ## ## ##??? | | ???# b ## ## #???? | | ???# #################Y##### #??? | | ???## g##??#^ g g #??? | | ????# #???# i #??? | | ????# #???# """ #??? | | ????# #???# """ ##+###+##### #??? | | ????# l#???# """ T#??????????##+###??? | | ????# g#???# g ##??????????????????? | | ????# !%#???# g #???????????????????? | | ????# !=#???#Y##+##+#???????????????????? | | ????# <=##### # / ?????????????????????? | | ????# = + ???????????????????? | | ????########### #??????????????????? | | ??????????????#!? #??????????????????? | | ???????????????!? ] #??????????????????? | +----------------------------------------------------+ Best States ------------- Heat Dissipation 31 Energy Generation 5 Energy Capacity 500 Matter Stores 300 Matter Capacity 300 Sight Range 16 Terrain Scan Density 10 Armor Coverage 600 Evasion (%) 63 Item Schematics ----------------- None Robot Schematics ------------------ None Fabricated ------------ Nothing Alien Tech Used ----------------- None Achievements -------------- None Challenges ------------ None Game ------ Seed MetafiberPhasingActivator Manual? 0 Play Time 00:14:57 Cumulative 136.5 hours Start 2021.12.16 @ 06:40:55 End 2021.12.16 @ 06:54:25 Sessions 1 Manual Loads 0 Difficulty Rogue Special Mode None Game No. 63 Rogue 63 Adventurer 0 Explorer 0 Win Type - Total 4 Types 2/1/0/0/1/0/0/0/0 Lore% 46 Gallery% 67 Achievement% 58 Wizard Run 0 Options --------- ASCII 0 Keyboard 0 Movement Mouse Keybinds 0 Fullscreen 0 Font 28/SmallcapsGlow Map View 72x54 Tactical HUD 1 Map Filters NONE Filters NONE Steam 1 RUN: aada5a0d-0a69-4643-af21-7ece489a670e